[Event "44th Chess Olympiad Women 2022"]
[Site "Chennai"]
[Date "2022.07.29"]
[Round "1.4"]
[White "Ahmad Murad, Fatema Alzahraa."]
[Black "Kiolbasa, Oliwia"]
[Result "0-1"]
[ECO "D56"]
[WhiteElo "1791"]
[BlackElo "2376"]
[Annotator "TA"]
[PlyCount "54"]
[EventDate "2022.07.29"]
[EventType "team-tourn"]
[EventCountry "IND"]
[SourceTitle "playchess.com"]
[Source "ChessBase"]
[SourceQuality "1"]
[WhiteTeam "Syria"]
[BlackTeam "Poland"]
[WhiteTeamCountry "SYR"]
[BlackTeamCountry "POL"]
[TimeControl "40/5400+30:1800+30"]

{[%evp 13,54,8,21,10,33,13,19,30,23,27,18,20,25,28,46,0,0,-11,-4,-17,-15,-24,-2,-6,-1,-25,-20,-21,0,0,14,0,24,0,0,0,15,0,0,0,0,0,0]} 1. d4 {[%emt 0:00:13]} d5 {[%emt 0:00:10]} 2. c4 {[%emt 0:00:15]} e6 {[%emt 0:00:15]} 3. Nc3 {[%emt 0:00:38]} Nf6 {[%emt 0:00:11]} 4. Bg5 {[%emt 0:01:21]} Be7 {[%emt 0:02:07]} 5. e3 {[%emt 0:01:05]} Nbd7 {[%emt 0:02:08]} 6. Nf3 {[%emt 0:02:22]} h6 {[%emt 0:00:43]} 7. Bh4 {[%emt 0:00:22]} O-O {[%emt 0:01:11]} 8. Be2 {[%emt 0:01:34] D56: Queen's Gambit Declined: Lasker Defence.} c5 {[%emt 0:04:35] 8...dxc4 is the modern continuation.} 9. O-O {[%emt 0:07:19]} Ne4 {[%emt 0:11:17]} 10. Bxe7 {[%emt 0:03:31]} (10. Nxe4 {is interesting.} dxe4 11. Bxe7 Qxe7 12. Ne5) 10... Qxe7 {[%emt 0:00:14]} 11. cxd5 {[%emt 0:01:41]} Nxc3 {[%emt 0:00:23]} 12. bxc3 {[%emt 0:01:23] dxe6 is the strong threat.} exd5 {[%emt 0:00:18] [#]} 13. dxc5 $146 {[%emt 0:02:30]} ({Predecessor:} 13. Rc1 c4 14. Qc2 Nf6 15. Ne5 Nd7 16. Nf3 Nf6 17. Nd2 b5 18. Rfe1 Rb8 19. Bf1 {1-0 (44) Rasche,H-Zitzwitz,B Baunatal 1998}) 13... Nxc5 {[%emt 0:03:04]} 14. Qd4 {[%emt 0:08:21]} (14. Qxd5 $14 Bg4 15. h3) 14... Be6 $11 {[%emt 0:03:09][%cal Bc8e6,Be6f5,Bf5d3,Bd3e4][%mdl 32]} 15. Rab1 {[%emt 0:02:40][%cal Ba1b1,Bb1b2,Bb2d2,Bd2d3,Bd3d5][%mdl 32]} Rac8 {[%emt 0:00:54]} 16. Rfc1 {[%emt 0:04:55]} Rfd8 {[%emt 0:04:55]} 17. Qb4 {[%emt 0:04:02]} Bf5 {[%emt 0:04:57]} 18. Rb2 {[%emt 0:04:20]} Qf6 {[%emt 0:06:59]} 19. Nd4 {[%emt 0:12:43]} Bd3 {[%emt 0:04:19] Hoping for ...Bxe2.} 20. Nb3 {[%emt 0:11:11]} Nxb3 {[%emt 0:07:13]} 21. axb3 {[%emt 0:01:07]} Be4 {[%emt 0:08:39][%cal Od5d4] Strongly threatening ...d4!} 22. Rd2 {[%emt 0:11:56] Against d4} Rc6 {[%emt 0:04:05]} 23. Bd3 {[%emt 0:05:42]} Rb6 {[%emt 0:09:51] The position is equal.} 24. Qa4 {[%emt 0:01:44]} a6 {[%emt 0:05:58]} 25. Rcd1 {[%emt 0:04:09]} Bxd3 {[%emt 0:05:12]} 26. Rxd3 {[%emt 0:00:08]} Rc8 {[%emt 0:00:27]} 27. Rxd5 {[%emt 0:06:17]} Qxc3 {[%emt 0:02:19][%mdl 32768] Weighted Error Value: White=0.10 (very precise) /Black=0.09 (flawless) . Loss on time!?} 0-1

[Event "44th Chess Olympiad Women 2022"]
[Site "Chennai"]
[Date "2022.07.29"]
[Round "1.5"]
[White "Milliet, Sophie"]
[Black "Jose de Ribbegren, Kenia"]
[Result "1-0"]
[ECO "C02"]
[WhiteElo "2396"]
[BlackElo "1787"]
[Annotator "TA"]
[PlyCount "51"]
[EventDate "2022.07.29"]
[EventType "team-tourn"]
[EventCountry "IND"]
[SourceTitle "playchess.com"]
[Source "ChessBase"]
[SourceQuality "1"]
[WhiteTeam "France"]
[BlackTeam "Monaco"]
[WhiteTeamCountry "FRA"]
[BlackTeamCountry "MNC"]
[TimeControl "40/5400+30:1800+30"]

{[%evp 16,51,34,18,53,63,129,117,185,162,275,151,195,95,147,133,168,161,190,187,171,188,190,189,178,193,235,248,247,248,535,515,29994,29995,29995,29996,29996,29997]} 1. e4 {[%emt 0:00:04]} e6 {[%emt 0:00:10]} 2. d4 {[%emt 0:00:09]} d5 {[%emt 0:00:10]} 3. e5 {[%emt 0:00:24]} c5 {[%emt 0:00:10]} 4. c3 {[%emt 0:00:04]} Nc6 {[%emt 0:00:29]} 5. Nf3 {[%emt 0:00:04]} Qb6 {[%emt 0:00:53]} 6. Bd3 {[%emt 0:00:38]} Bd7 {[%emt 0:03:16]} 7. dxc5 {[%emt 0:05:27]} Bxc5 {[%emt 0:01:14]} 8. O-O {[%emt 0:00:04]} a5 {[%emt 0:06:13]} 9. Nbd2 {[%emt 0:00:50]} a4 {[%emt 0:03:58] Against Nb3. C02: French: Advance Variation.} 10. b4 {[%emt 0:05:49][%cal Bb2b4,Bb4b5][%mdl 32]} Be7 {[%emt 0:07:47]} ({Better is} 10... axb3 $1 $14 11. Nxb3 Nge7) 11. b5 $16 {[%emt 0:06:31] [#]} Nb8 $146 {[%emt 0:14:08]} (11... Nd8 $16) ({Predecessor:} 11... Nd8 12. Nd4 Qc7 13. N2f3 Qxc3 14. Be3 Nh6 15. Rc1 Qa5 16. Bxh6 gxh6 17. Rc2 h5 {0-1 (55) Skytte,R (2436)-Gajek,R (2315) Naklo nad Notecia 2014}) 12. c4 $18 {[%emt 0:04:03]} Bc5 {[%emt 0:04:37]} (12... Nh6 {might work better.} 13. Bb2 O-O) 13. Rb1 {[%emt 0:10:21]} (13. Ng5 $18) 13... Ne7 {[%emt 0:03:07] [#]} 14. h4 {[%emt 0:10:59]} (14. Ng5 $1 $18 {and White stays clearly on top.}) 14... Ng6 {[%emt 0:20:11]} (14... h6 $142) 15. g3 {[%emt 0:00:16]} Qc7 {[%emt 0:04:20]} 16. Qe2 {[%emt 0:02:13]} b6 {[%emt 0:01:27]} 17. h5 {[%emt 0:08:11]} Ne7 {[%emt 0:00:25]} 18. Bb2 {[%emt 0:01:27]} Bc8 {[%emt 0:05:33]} 19. cxd5 {[%emt 0:15:38]} exd5 {[%emt 0:00:33]} 20. Nd4 {[%emt 0:00:37]} Qd7 {[%emt 0:10:34] [#]} 21. e6 $1 {[%emt 0:05:35]} fxe6 {[%emt 0:00:42]} 22. h6 {[%emt 0:00:09]} O-O {[%emt 0:03:21]} (22... g6 23. Nxe6 Qxe6 24. Qxe6 (24. Bxh8 Qh3 $16) 24... Bxe6 25. Bxh8 Bg4) 23. hxg7 {[%emt 0:01:04] White wants to mate with Bxh7+.} Rf7 {[%emt 0:00:30] [#]} (23... Rf6 $18 24. N4b3 e5) 24. Bxh7+ $1 {[%emt 0:06:38][%mdl 512] White mates.} Kxg7 {[%emt 0:04:22]} 25. Nxe6+ {[%emt 0:06:49]} Kh6 {[%emt 0:00:20] [#]} 26. Qg4 $1 {[%emt 0:01:27] Weighted Error Value: White=0.15 (very precise) /Black=0.82} 1-0

[Event "44th Chess Olympiad Women 2022"]
[Site "Chennai"]
[Date "2022.07.29"]
[Round "1.5"]
[White "Dubois, Martine"]
[Black "Guichard, Pauline"]
[Result "0-1"]
[ECO "C55"]
[WhiteElo "1782"]
[BlackElo "2379"]
[Annotator "TA"]
[PlyCount "76"]
[EventDate "2022.07.29"]
[EventType "team-tourn"]
[EventCountry "IND"]
[SourceTitle "playchess.com"]
[Source "ChessBase"]
[SourceQuality "1"]
[WhiteTeam "Monaco"]
[BlackTeam "France"]
[WhiteTeamCountry "MNC"]
[BlackTeamCountry "FRA"]
[TimeControl "40/5400+30:1800+30"]

{[%evp 10,76,44,37,38,-21,89,33,41,16,24,14,22,11,50,25,53,54,42,0,0,0,0,0,0,-41,-10,-86,-79,-178,-86,-119,-91,-78,-80,-106,-101,-188,-183,-237,-241,-252,-262,-256,-251,-281,-221,-216,-208,-349,-342,-356,-353,-345,-346,-367,-354,-500,-492,-626,-623,-590,-599,-814,-815,-1070,-1046,-1020,-1005]} 1. e4 {[%emt 0:00:02]} e5 {[%emt 0:00:05]} 2. Bc4 {[%emt 0:00:07]} Nf6 {[%emt 0:00:32]} 3. d3 {[%emt 0:00:06]} Nc6 {[%emt 0:01:41]} 4. Nf3 {[%emt 0:00:12]} h6 {[%emt 0:01:16]} 5. c3 {[%emt 0:02:16]} d6 {[%emt 0:00:30]} 6. O-O {[%emt 0:15:37]} g5 $1 {[%emt 0:03:23][%mdl 4] now scores much better than the old 6...g6. C55: Two Knights: 4 d3, 4 d4 exd4 5 e5 and Max Lange Attack.} 7. d4 {[%emt 0:04:46]} ({White should play} 7. Nbd2 $14) 7... Bg4 {[%emt 0:06:24] [#]} (7... g4 $11 8. Nfd2 exd4) 8. d5 $146 {[%emt 0:06:43]} (8. Qb3 $16) ({Predecessor:} 8. dxe5 Nxe5 9. Be2 Bg7 10. Nd4 Be6 11. Nxe6 fxe6 12. Bh5+ Nxh5 13. Qxh5+ Kd7 14. Be3 {1-0 (41) Isha,S (2276)-Demin,V (2430) Chess.com INT 2020}) 8... Ne7 $14 {[%emt 0:01:45][%cal Bc6e7,Be7g6,Bg6f4][%mdl 32] White is slightly better.} 9. Nbd2 {[%emt 0:06:00]} Bg7 {[%emt 0:04:52]} 10. Re1 {[%emt 0:04:07]} O-O {[%emt 0:02:21]} 11. Nf1 {[%emt 0:01:56]} Ng6 {[%emt 0:10:23]} 12. Ng3 {[%emt 0:04:00]} (12. h3 $5 {[%cal Rh3g4]} Bd7 13. Ng3 $11) 12... Nf4 {[%emt 0:08:18]} 13. h3 {[%emt 0:08:28]} Bd7 {[%emt 0:03:18]} 14. Nf5 {[%emt 0:03:17]} Bxf5 {[%emt 0:10:23]} 15. exf5 {[%emt 0:00:03]} Qd7 {[%emt 0:00:09]} 16. Bxf4 {[%emt 0:02:28]} gxf4 {[%emt 0:00:27]} 17. Nh4 {[%emt 0:01:55]} Kh8 {[%emt 0:00:57]} 18. Be2 {[%emt 0:06:28]} (18. Bb3 $11 {remains equal.}) 18... Rg8 $17 {[%emt 0:02:27]} 19. Bg4 {[%emt 0:03:02] [#]} (19. Bc4 $17 {is a better defense.}) 19... Qb5 {[%emt 0:02:43]} (19... Rae8 $1 $19 {and Black stays clearly on top.} 20. Be2 e4) 20. Qe2 {[%emt 0:05:45]} Qxe2 {[%emt 0:02:51]} (20... Qxd5 {is more complex.} 21. Bf3 Qc5 22. Qd2 c6) 21. Bxe2 {[%emt 0:01:11]} e4 {[%emt 0:07:51] Against Bd3} ({Of course not} 21... Nxd5 22. Bc4 Ne7 23. Bxf7 $11) 22. Bc4 {[%emt 0:03:10]} Rae8 {[%emt 0:00:50][%cal Ba8e8,Be8e5,Be5f5][%mdl 32]} 23. g3 {[%emt 0:04:37] [#]} (23. f3 $17) 23... f3 $1 $19 {[%emt 0:02:07]} 24. Rad1 {[%emt 0:02:06]} (24. Kh2 $142) 24... h5 {[%emt 0:02:38]} 25. Kh2 {[%emt 0:02:58]} Bh6 {[%emt 0:01:10]} 26. Rg1 {[%emt 0:03:05]} Bg5 {[%emt 0:01:51]} 27. Kh1 {[%emt 0:02:06]} Re5 {[%emt 0:02:01]} 28. Kh2 {[%emt 0:00:28]} Kh7 {[%emt 0:02:08]} 29. Kh1 {[%emt 0:01:19]} (29. Bb3 $142) 29... Bxh4 {[%emt 0:05:31]} 30. gxh4 {[%emt 0:00:02]} Rxg1+ {[%emt 0:00:40]} ({And not} 30... Rxf5 31. Bb3 $17) 31. Kxg1 {[%emt 0:00:13]} Rxf5 {[%emt 0:00:14][%mdl 4096] Endgame KRB-KRN} 32. Kh2 {[%emt 0:00:42]} Re5 {[%emt 0:01:18]} 33. Kg3 {[%emt 0:02:27]} (33. Bb3 $142 Kg6 34. Rg1+ Kf5 35. Rg7) 33... Nd7 {[%emt 0:00:10] Black is clearly winning.} 34. Kf4 {[%emt 0:01:13]} Nf8 {[%emt 0:00:41]} 35. Ke3 {[%emt 0:02:10]} Ng6 {[%emt 0:00:40]} 36. Rd4 {[%emt 0:00:18]} f5 {[%emt 0:00:19][%cal Bf7f5,Bf5f4][%mdl 32]} 37. Rd1 {[%emt 0:01:23]} f4+ {[%emt 0:02:36]} 38. Kd4 {[%emt 0:00:16]} Nxh4 {[%emt 0:00:24] Weighted Error Value: White=0.57/Black=0.15 (very precise)} 0-1

[Event "44th Chess Olympiad Women 2022"]
[Site "Chennai"]
[Date "2022.07.29"]
[Round "1.6"]
[White "Rouda Essa, Alserkal"]
[Black "Fataliyeva, Ulviyya"]
[Result "0-1"]
[ECO "C09"]
[WhiteElo "1874"]
[BlackElo "2372"]
[Annotator "TA"]
[PlyCount "65"]
[EventDate "2022.07.29"]
[EventType "team-tourn"]
[EventCountry "IND"]
[SourceTitle "playchess.com"]
[Source "ChessBase"]
[SourceQuality "1"]
[WhiteTeam "United Arab Emirates"]
[BlackTeam "Azerbaijan"]
[WhiteTeamCountry "UAE"]
[BlackTeamCountry "AZE"]
[TimeControl "40/5400+30:1800+30"]

{[%evp 13,65,-6,-8,-52,-45,-47,-29,-34,-16,-52,-41,-43,-41,-44,-55,-56,-36,-37,-39,-36,-36,-53,-39,-101,-79,-41,-34,-85,-70,-66,-63,-87,-68,-62,-62,-89,-22,-37,16,-29,-2,-43,-27,-34,-40,-56,-47,-47,-47,-576,-559,-29993,-29983,-29983]} 1. e4 {[%emt 0:00:03]} e6 {[%emt 0:00:04]} 2. d4 {[%emt 0:00:04]} d5 {[%emt 0:00:02]} 3. Nd2 {[%emt 0:00:05]} c5 {[%emt 0:00:04]} 4. Ngf3 {[%emt 0:00:14]} Nc6 {[%emt 0:00:51]} 5. exd5 {[%emt 0:03:51]} exd5 {[%emt 0:00:26]} 6. dxc5 {[%emt 0:04:29]} Bxc5 {[%emt 0:00:28]} 7. Nb3 {[%emt 0:03:20]} Bb6 {[%emt 0:00:57]} 8. Bg5 {[%emt 0:06:12] C09: French Tarrasch: 3...c5 4 exd5 exd5 5 Ngf3 Nc6.} Nf6 $1 {[%emt 0:02:51][%cal Ob6f2]} 9. Bd3 {[%emt 0:04:54]} O-O {[%emt 0:00:32]} 10. O-O {[%emt 0:00:24] Black has an edge.} Bg4 {[%emt 0:01:36]} (10... h6 $5 {[%cal Rh6g5]} 11. Be3 Bxe3 12. fxe3 Bd7 $11) 11. Be2 {[%emt 0:02:04]} Re8 {[%emt 0:04:29]} 12. Nfd4 {[%emt 0:08:56]} Bxe2 {[%emt 0:06:21]} 13. Nxe2 {[%emt 0:01:27] [#]} Qd6 $146 {[%emt 0:07:32]} ({Predecessor:} 13... Qe7 14. Ng3 Qe5 15. Bxf6 Qxf6 16. Qxd5 Qxb2 17. c4 Rad8 18. Qg5 Qe5 19. Nf5 g6 {0-1 (38) Subelj,J (2341)-Boyer,M (2189) Riga 2018}) 14. Bf4 {[%emt 0:17:24]} Qb4 {[%emt 0:06:26][%cal Oe8e2] aiming for ...Rxe2!} 15. Bg3 {[%emt 0:13:03]} h5 {[%emt 0:00:15]} 16. c3 {[%emt 0:04:07]} Qg4 {[%emt 0:12:52]} 17. Nf4 {[%emt 0:03:48]} Qg5 {[%emt 0:01:16]} 18. Nd2 {[%emt 0:02:02]} (18. a4 $15) 18... Qh6 {[%emt 0:08:18] And now ...h4 would win.} 19. Nf3 {[%emt 0:05:23]} Rad8 {[%emt 0:00:13][%cal Oh5h4]} 20. Nh3 {[%emt 0:01:48]} (20. Ne2 $15) 20... Ne4 {[%emt 0:03:35] White must now prevent ...g5.} 21. Bf4 {[%emt 0:03:11] Prevents g5.} Qg6 {[%emt 0:02:52] 0x0.0020a9e949f7dp-1022s more active pieces.} 22. Nd4 {[%emt 0:01:08]} Nxd4 {[%emt 0:02:34]} 23. cxd4 {[%emt 0:00:08]} Nf6 {[%emt 0:01:05]} 24. a4 {[%emt 0:03:41] Threatens to win with a5.} a6 {[%emt 0:03:06]} (24... Re4 $17 25. Be3 Ng4) 25. Ra3 {[%emt 0:02:23]} Qg4 {[%emt 0:02:53]} (25... Re4 $15) 26. Qd2 {[%emt 0:02:59]} (26. Rb3 $5 {[%cal Rb3b6]} Qxd1 27. Rxd1 Bxd4 28. g3 $11) 26... Re4 {[%emt 0:12:18]} 27. Rd3 {[%emt 0:05:55]} (27. Rg3 $5 {[%cal Rg3g4]} Rxd4 28. Rxg4 Rxd2 29. Rxg7+ Kxg7 30. Bxd2 $15) 27... Qe2 {[%emt 0:00:00]} 28. Qc3 {[%emt 0:00:52]} Rde8 $36 {[%emt 0:00:00][%cal Ob6a5][%mdl 2048] ...Ba5! is the strong threat. White is under pressure.} 29. Be3 {[%emt 0:00:30] [#] Strongly threatening Re1.} Ba5 $1 {[%emt 0:00:00]} 30. Qb3 {[%emt 0:00:32]} Ng4 {[%emt 0:01:52][%cal Re4e3]} 31. Nf4 $2 {[%emt 0:00:32][%mdl 8192] [#]} (31. Qd1 $1 $15 Qxd1 32. Rfxd1) 31... Rxf4 $1 $19 {[%emt 0:00:12][%mdl 512]} 32. Qxd5 {[%emt 0:00:27]} (32. Qd1 Qxd1) 32... Qxd3 {[%emt 0:00:33]} 33. Qxa5 {[%emt 0:00:31] Weighted Error Value: White=0.56/Black=0.13 (very precise)} 0-1

[Event "44th Chess Olympiad Women 2022"]
[Site "Chennai"]
[Date "2022.07.29"]
[Round "1.7"]
[White "Abrahamyan, Tatev"]
[Black "Alvarado Perez, Coralys M."]
[Result "1-0"]
[ECO "B01"]
[WhiteElo "2291"]
[BlackElo "1471"]
[Annotator "TA"]
[PlyCount "51"]
[EventDate "2022.07.29"]
[EventType "team-tourn"]
[EventCountry "IND"]
[SourceTitle "playchess.com"]
[Source "ChessBase"]
[SourceQuality "1"]
[WhiteTeam "United States"]
[BlackTeam "Puerto Rico"]
[WhiteTeamCountry "USA"]
[BlackTeamCountry "PUR"]
[TimeControl "40/5400+30:1800+30"]

{[%evp 9,51,45,37,58,55,41,43,48,48,31,75,75,188,183,151,181,168,181,428,410,399,409,690,694,714,720,709,705,702,701,768,764,756,692,749,742,698,642,745,738,728,683,1939,1856]} 1. e4 {[%emt 0:00:03]} d5 {[%emt 0:02:04]} 2. exd5 {[%emt 0:00:24]} Qxd5 {[%emt 0:00:10]} 3. Nc3 {[%emt 0:00:17]} Qe5+ {[%emt 0:00:47]} 4. Be2 {[%emt 0:02:47]} c6 {[%emt 0:01:29]} 5. d4 {[%emt 0:01:28][%cal Bd2d4,Bd4d5,Bd5c6][%mdl 32]} Qc7 $1 {[%emt 0:01:13]} 6. Nf3 {[%emt 0:01:09] B01: Scandinavian Defence.} Bf5 {[%emt 0:01:25]} 7. Ne5 {[%emt 0:04:41] aiming for Bf4.} Nd7 {[%emt 0:00:49]} 8. Bf4 {[%emt 0:05:28] [#] g4 is the strong threat. White is slightly better.} Nxe5 {[%emt 0:02:01]} 9. Bxe5 {[%emt 0:01:56]} Qd7 {[%emt 0:04:01]} 10. d5 {[%emt 0:04:34] [#] White is more active.} e6 $146 {[%emt 0:12:41]} (10... Nf6 $16) ({Predecessor:} 10... f6 11. Bg3 e5 12. dxc6 Qxd1+ 13. Rxd1 bxc6 14. Bd3 Ne7 15. O-O Rb8 16. b3 Rd8 {½-½ (27) Ramsden,J (1934)-Thierry,R (2315) ICCF email 2011}) 11. dxc6 $18 {[%emt 0:03:10][%csl Gc6][%cal Rd1d7]} Qxd1+ {[%emt 0:00:51]} 12. Rxd1 {[%emt 0:00:03]} ({Much weaker is} 12. Kxd1 $6 bxc6 13. g4 Bg6 $11) 12... bxc6 {[%emt 0:00:17] [#]} 13. Nb5 $1 $36 {[%emt 0:14:45][%mdl 2048] Threatens to win with Nc7+. Black is under strong pressure.} Bb4+ $2 {[%emt 0:07:21]} (13... cxb5 {is a self mate.} 14. Bxb5+ Ke7 15. Rd7+ Ke8 16. Rxa7+ Kd8 17. Rxa8+ Ke7 18. Re8#) (13... Rd8 {keeps fighting.}) 14. c3 {[%emt 0:02:20]} cxb5 {[%emt 0:06:06]} 15. Bxg7 {[%emt 0:04:01]} ({Weaker is} 15. cxb4 f6 $18) 15... Bxc3+ {[%emt 0:12:09]} (15... Ke7 $142 16. Bxh8 Bc5 17. Bxb5 Nf6 18. Bxf6+ Kxf6) 16. bxc3 {[%emt 0:00:46] White is clearly winning.} f6 {[%emt 0:01:08]} 17. Bxh8 {[%emt 0:03:43]} Kf7 {[%emt 0:05:48]} 18. g4 {[%emt 0:02:31]} Be4 {[%emt 0:02:01]} 19. f3 {[%emt 0:00:14]} Bc6 {[%emt 0:03:30]} 20. g5 {[%emt 0:01:38]} fxg5 {[%emt 0:01:18]} 21. Rg1 {[%emt 0:05:01]} Ne7 {[%emt 0:02:07]} 22. Bd4 {[%emt 0:00:15]} Rg8 {[%emt 0:03:13]} 23. Bxa7 {[%emt 0:02:03]} Nf5 {[%emt 0:00:56]} 24. Bc5 {[%emt 0:01:54]} h6 {[%emt 0:01:02]} 25. f4 {[%emt 0:01:33]} gxf4 {[%emt 0:03:52]} 26. Bh5+ {[%emt 0:00:49] Black got outplayed after the opening.  Weighted Error Value: White=0.11 (very precise) /Black=0.51} 1-0

[Event "44th Chess Olympiad Women 2022"]
[Site "Chennai"]
[Date "2022.07.29"]
[Round "1.8"]
[White "Wagner, Dinara"]
[Black "Mbatha, Constance"]
[Result "1-0"]
[ECO "C41"]
[WhiteElo "2341"]
[BlackElo "1614"]
[Annotator "TA"]
[PlyCount "83"]
[EventDate "2022.07.29"]
[EventType "team-tourn"]
[EventCountry "IND"]
[SourceTitle "playchess.com"]
[Source "ChessBase"]
[SourceQuality "1"]
[WhiteTeam "Germany"]
[BlackTeam "Zambia"]
[WhiteTeamCountry "GER"]
[BlackTeamCountry "ZAM"]
[TimeControl "40/5400+30:1800+30"]

{[%evp 10,83,29,24,44,44,47,41,51,26,45,37,31,33,41,40,43,38,75,63,94,73,79,78,74,65,78,66,169,162,169,172,172,173,188,141,214,206,266,221,277,203,197,173,187,0,127,20,22,23,33,18,22,0,47,0,443,431,529,512,1102,1054,5690,4065,5125,2138,5635,5352,29988,29987,29991,29992,29997,29998,29998,29999]} 1. e4 {[%emt 0:00:09]} e5 {[%emt 0:00:14]} 2. Nf3 {[%emt 0:00:04]} d6 {[%emt 0:00:13]} 3. d4 {[%emt 0:00:04]} exd4 {[%emt 0:00:13]} 4. Nxd4 {[%emt 0:00:14]} Nf6 {[%emt 0:00:13]} 5. Nc3 {[%emt 0:00:05]} Be7 {[%emt 0:00:12]} 6. g3 {[%emt 0:00:04]} Bd7 {[%emt 0:00:27] C41: Philidor Defence.} 7. Bg2 {[%emt 0:00:26]} Nc6 {[%emt 0:00:07]} 8. O-O {[%emt 0:01:24]} O-O {[%emt 0:01:34] White is slightly better.} 9. h3 {[%emt 0:01:03]} Re8 {[%emt 0:04:28] [#]} 10. a4 $146 {[%emt 0:03:03]} ({Predecessor:} 10. Re1 Bf8 11. Bg5 h6 12. Be3 Ne5 13. f4 Nc4 14. Bc1 c5 15. Nf3 Bc6 16. Qd3 {0-1 (41) Plenca,J (2483)-Plat,V (2562) Chess.com INT 2020}) 10... h6 {[%emt 0:02:13]} 11. Re1 {[%emt 0:00:56]} Bf8 {[%emt 0:00:56]} 12. Bf4 {[%emt 0:01:22]} Ne5 {[%emt 0:02:01]} 13. g4 {[%emt 0:06:24]} Ng6 {[%emt 0:02:39]} 14. Bg3 {[%emt 0:00:35]} Nh7 {[%emt 0:05:54]} 15. Kh2 {[%emt 0:12:07]} c6 {[%emt 0:06:59]} 16. Qd2 {[%emt 0:02:52]} Qc7 {[%emt 0:00:13]} 17. Rad1 {[%emt 0:03:22]} Rad8 {[%emt 0:00:42]} 18. f4 {[%emt 0:01:44][%cal Bf2f4,Bf4f5][%mdl 32]} f6 {[%emt 0:02:43]} (18... Nf6 $14) 19. Qd3 $18 {[%emt 0:11:17]} Nh8 {[%emt 0:03:02]} 20. Qc4+ {[%emt 0:07:15]} Nf7 {[%emt 0:01:28]} 21. f5 {[%emt 0:04:17] Black must now prevent Ne6.} Qc8 {[%emt 0:10:36]} 22. Nce2 {[%emt 0:04:35]} (22. h4 $18) 22... Be7 {[%emt 0:04:02]} (22... Nhg5 $16) 23. Nf4 {[%emt 0:02:02]} Nf8 {[%emt 0:00:25]} 24. Ng6 {[%emt 0:01:43]} c5 {[%emt 0:24:45]} 25. Ne2 {[%emt 0:15:48]} a6 {[%emt 0:02:28]} 26. Nxe7+ {[%emt 0:00:55]} Rxe7 {[%emt 0:00:44]} 27. Bxd6 $2 {[%emt 0:00:09]} (27. Rxd6 $18 {[%cal Oe4e5] aiming for e5!} Kh8 28. Rd5) 27... b5 {[%emt 0:02:43]} (27... Be6 $1 $11 {keeps the balance.} 28. fxe6 Nxd6) 28. Qa2 {[%emt 0:03:28] 0x0.001b83eb4096dp-1022s more active pieces. The black rooks are badly placed.} (28. Qxc5 $16 Nxd6 29. Qxd6) 28... Be6 $11 {[%emt 0:06:02]} 29. fxe6 {[%emt 0:00:29]} Nxd6 {[%emt 0:00:06]} 30. axb5 {[%emt 0:00:28]} axb5 {[%emt 0:00:41]} 31. Nf4 {[%emt 0:00:53]} Qb8 {[%emt 0:03:31]} (31... Nc4 $11 32. b3 Rxd1 33. Rxd1 Qb8 34. bxc4 Qxf4+ 35. Kh1 bxc4) 32. Kh1 {[%emt 0:01:37]} (32. e5 $14 fxe5 33. Nd5 (33. Rxe5 $2 Nc4 $19)) 32... Ra7 $2 {[%emt 0:03:41][%mdl 8192]} (32... Nc4 $11 {and Black has nothing to worry.} 33. Rxd8 Qxd8) 33. Qd5 $18 {[%emt 0:02:12] [#] And now e7+ would win.} Nb7 {[%emt 0:01:42]} 34. Qf5 {[%emt 0:01:04]} Re8 {[%emt 0:02:28]} (34... Nd6 $142 35. Qxc5 Rc7) 35. e5 {[%emt 0:01:04]} Na5 {[%emt 0:02:35]} 36. exf6 {[%emt 0:00:28] White wants to mate with e7.} gxf6 {[%emt 0:01:01]} 37. Qxf6 {[%emt 0:00:37]} (37. e7 $142 Raxe7 38. Bd5+ Rf7 39. Bxf7+ Kxf7 40. Qh5+ Kg7 41. Rxe8 Qb7+ 42. Kg1) 37... Nh7 {[%emt 0:02:08]} 38. Qxh6 {[%emt 0:00:20][%cal Oe6e7] [#] e7! would kill now.} Rae7 {[%emt 0:01:15]} 39. Nh5 {[%emt 0:01:05] White mates.} Qb6 {[%emt 0:01:09]} 40. Be4 {[%emt 0:00:59]} Nc4 {[%emt 0:01:07]} 41. Bxh7+ {[%emt 0:30:09]} Rxh7 {[%emt 0:30:48]} 42. Nf6+ {[%emt 0:00:05] Weighted Error Value: White=0.25 (precise) /Black=0.74} 1-0